[Event "VI Sunway Sitges Open 2019"]
[Site "Sitges"]
[Date "2019.12.16"]
[Round "4.49"]
[White "Kjartansson, Gudmundur"]
[Black "Kochavi, Ori"]
[Result "1-0"]
[ECO "A16"]
[WhiteElo "2448"]
[BlackElo "2259"]
[Annotator "NA"]
[PlyCount "103"]
[EventDate "2019.12.13"]
[EventType "swiss"]
[EventCountry "ESP"]
[SourceTitle "playchess.com"]
[Source "ChessBase"]
[SourceQuality "1"]
[TimeControl "40/5400+30:1800+30"]

1. Nf3 {[%emt 0:00:05]} Nf6 {[%emt 0:00:07]} 2. c4 {[%emt 0:00:23]} g6 {[%emt 0:00:04]} 3. Nc3 {[%emt 0:00:06]} d5 {[%emt 0:00:22]} 4. cxd5 {[%emt 0:00:15]} Nxd5 {[%emt 0:00:04]} 5. h4 {[%emt 0:02:49]} h6 {[%emt 0:00:13]} 6. e4 {[%emt 0:01:42]} Nxc3 {[%emt 0:00:08]} 7. dxc3 {[%emt 0:00:17]} Qxd1+ {[%emt 0:00:09]} 8. Kxd1 {[%emt 0:00:02]} Bg7 {[%emt 0:03:56]} 9. Bf4 {[%emt 0:01:25]} c6 {[%emt 0:00:06]} 10. Kc2 {[%emt 0:01:53]} Nd7 {[%emt 0:04:05]} 11. Nd2 {[%emt 0:07:07]} O-O {[%emt 0:03:06]} 12. f3 {[%emt 0:19:32]} Ne5 {[%emt 0:17:39]} 13. Nc4 {[%emt 0:08:36]} Nxc4 {[%emt 0:00:19]} 14. Bxc4 {[%emt 0:00:02]} Kh7 {[%emt 0:12:28]} 15. a4 {[%emt 0:01:53]} e5 {[%emt 0:07:48]} 16. Be3 {[%emt 0:00:19]} f5 {[%emt 0:00:05]} 17. Bc5 {[%emt 0:04:32]} Rd8 {[%emt 0:04:45]} 18. Rad1 {[%emt 0:00:58]} Rxd1 {[%emt 0:00:46]} 19. Rxd1 {[%emt 0:00:04]} Bf6 {[%emt 0:00:07]} 20. g3 {[%emt 0:02:09]} Kg7 {[%emt 0:04:35]} 21. a5 {[%emt 0:00:56]} a6 {[%emt 0:15:01]} 22. Kb3 {[%emt 0:01:47]} g5 {[%emt 0:00:53]} 23. hxg5 {[%emt 0:03:30]} Bxg5 {[%emt 0:00:04]} 24. Bd6 {[%emt 0:08:57]} Bf6 {[%emt 0:03:16]} 25. Kb4 {[%emt 0:08:51]} fxe4 {[%emt 0:01:02]} 26. fxe4 {[%emt 0:00:04]} Bg4 {[%emt 0:04:11]} 27. Rf1 {[%emt 0:00:17]} Rd8 {[%emt 0:00:07]} 28. Kc5 {[%emt 0:00:41]} Rd7 {[%emt 0:00:08]} 29. Rf2 {[%emt 0:02:05]} Kg6 {[%emt 0:00:34]} 30. Be2 {[%emt 0:00:35]} Bxe2 {[%emt 0:03:55]} 31. Rxe2 {[%emt 0:00:02]} Kf7 {[%emt 0:00:07]} 32. Rh2 {[%emt 0:03:10]} Bg7 {[%emt 0:03:36]} 33. Rf2+ {[%emt 0:00:56]} Ke6 {[%emt 0:00:09]} 34. Bf8 {[%emt 0:03:13]} Bf6 {[%emt 0:02:55]} 35. Bxh6 {[%emt 0:00:53]} Rh7 {[%emt 0:00:22]} 36. Be3 {[%emt 0:05:14]} Bd8 {[%emt 0:00:10]} 37. b4 {[%emt 0:01:36]} Rg7 {[%emt 0:00:04]} 38. Rd2 {[%emt 0:01:54]} Be7+ {[%emt 0:11:27]} 39. Kb6 {[%emt 0:01:01]} Rxg3 {[%emt 0:00:03]} 40. Re2 {[%emt 0:05:33]} Rg7 {[%emt 0:00:19]} 41. Ka7 {[%emt 0:03:31]} Bd6 {[%emt 0:07:50]} 42. Bc5 {[%emt 0:07:01]} Rg3 {[%emt 0:13:16]} 43. Rc2 {[%emt 0:08:33]} Rg4 {[%emt 0:03:07]} 44. Bxd6 {[%emt 0:03:13]} Kxd6 {[%emt 0:00:08]} 45. Kxb7 {[%emt 0:00:07]} Rxe4 {[%emt 0:00:04]} 46. Rd2+ {[%emt 0:00:19]} Ke6 {[%emt 0:00:14]} 47. Kxa6 {[%emt 0:00:12]} Rc4 {[%emt 0:00:06]} 48. Rc2 {[%emt 0:00:31]} e4 {[%emt 0:00:51]} 49. Kb6 {[%emt 0:00:15]} e3 {[%emt 0:00:02]} 50. a6 {[%emt 0:00:06]} Re4 {[%emt 0:00:05]} 51. a7 {[%emt 0:00:15]} e2 {[%emt 0:00:04]} 52. Rxe2 {[%emt 0:00:08]} 1-0

[Event "VI Sunway Sitges Open 2019"]
[Site "Sitges"]
[Date "2019.12.16"]
[Round "4.50"]
[White "Gorshtein, Ido"]
[Black "Tanmay Chopra"]
[Result "1/2-1/2"]
[ECO "A33"]
[WhiteElo "2372"]
[BlackElo "2100"]
[Annotator "NA"]
[PlyCount "92"]
[EventDate "2019.12.13"]
[EventType "swiss"]
[EventCountry "ESP"]
[SourceTitle "playchess.com"]
[Source "ChessBase"]
[SourceQuality "1"]
[TimeControl "40/5400+30:1800+30"]

1. c4 {[%emt 0:01:13]} c5 {[%emt 0:00:07]} 2. Nf3 {[%emt 0:00:15]} Nc6 {[%emt 0:00:08]} 3. d4 {[%emt 0:00:09]} cxd4 {[%emt 0:01:12]} 4. Nxd4 {[%emt 0:00:02]} Nf6 {[%emt 0:00:54]} 5. Nc3 {[%emt 0:00:09]} e6 {[%emt 0:03:23]} 6. a3 {[%emt 0:00:40]} Bc5 {[%emt 0:02:08]} 7. Nb3 {[%emt 0:00:14]} Be7 {[%emt 0:01:19]} 8. e4 {[%emt 0:00:15]} d6 {[%emt 0:00:07]} 9. Be2 {[%emt 0:00:12]} O-O {[%emt 0:00:19]} 10. Nd4 {[%emt 0:05:04]} d5 {[%emt 0:05:32]} 11. cxd5 {[%emt 0:06:28]} exd5 {[%emt 0:00:02]} 12. Nxc6 {[%emt 0:00:58]} bxc6 {[%emt 0:00:02]} 13. exd5 {[%emt 0:00:08]} Nxd5 {[%emt 0:04:01]} 14. Nxd5 {[%emt 0:02:30]} cxd5 {[%emt 0:00:42]} 15. O-O {[%emt 0:00:11]} Bf6 {[%emt 0:02:12]} 16. Rb1 {[%emt 0:00:42]} d4 {[%emt 0:02:23]} 17. Bd3 {[%emt 0:05:00]} Qd5 {[%emt 0:02:48]} 18. b4 {[%emt 0:02:11]} Bb7 {[%emt 0:03:35]} 19. Qg4 {[%emt 0:00:46]} Rfe8 {[%emt 0:05:21]} 20. Bd2 {[%emt 0:07:11]} h5 {[%emt 0:03:53]} 21. Qh3 {[%emt 0:04:01]} Bc8 {[%emt 0:01:42]} 22. Qf3 {[%emt 0:05:45]} Qxf3 {[%emt 0:01:27]} 23. gxf3 {[%emt 0:00:02]} Bb7 {[%emt 0:00:06]} 24. Kg2 {[%emt 0:07:42]} Re6 {[%emt 0:09:13]} 25. Rfe1 {[%emt 0:01:03]} Rae8 {[%emt 0:04:42]} 26. Rxe6 {[%emt 0:03:33]} Rxe6 {[%emt 0:00:03]} 27. Rc1 {[%emt 0:04:00]} Rc6 {[%emt 0:01:37]} 28. Rxc6 {[%emt 0:01:42]} Bxc6 {[%emt 0:00:02]} 29. b5 {[%emt 0:00:11]} Bd5 {[%emt 0:01:37]} 30. a4 {[%emt 0:00:44]} Be7 {[%emt 0:10:09]} 31. Be4 {[%emt 0:02:35]} Bc4 {[%emt 0:02:28]} 32. f4 {[%emt 0:01:29]} g6 {[%emt 0:04:34]} 33. Bc6 {[%emt 0:04:00]} f5 {[%emt 0:05:17]} 34. f3 {[%emt 0:08:47]} Kf7 {[%emt 0:03:24]} 35. a5 {[%emt 0:00:21]} Bc5 {[%emt 0:02:02]} 36. Kf2 {[%emt 0:00:43]} Ke7 {[%emt 0:05:28]} 37. Ke1 {[%emt 0:00:24]} d3 {[%emt 0:02:18]} 38. Kd1 {[%emt 0:02:08]} Kf7 {[%emt 0:02:49]} 39. a6 {[%emt 0:04:39]} Bd4 {[%emt 0:02:17]} 40. Kc1 {[%emt 0:03:56]} Kf6 {[%emt 0:00:03]} 41. h3 {[%emt 0:09:01]} Kf7 {[%emt 0:00:23]} 42. Bb4 {[%emt 0:04:31]} Be3+ {[%emt 0:00:02]} 43. Kb2 {[%emt 0:00:01]} d2 {[%emt 0:00:02]} 44. Bxd2 {[%emt 0:00:01]} Bxd2 {[%emt 0:00:02]} 45. b6 {[%emt 0:00:01]} Be3 46. b7 {[%emt 0:00:04]} Bd2 {[%emt 0:00:01]} 1/2-1/2

[Event "VI Sunway Sitges Open 2019"]
[Site "Sitges"]
[Date "2019.12.16"]
[Round "4.51"]
[White "Gorshtein, Asaf"]
[Black "Pablo Mari, Alejandro"]
[Result "0-1"]
[ECO "B08"]
[WhiteElo "2105"]
[BlackElo "2356"]
[Annotator "NA"]
[PlyCount "98"]
[EventDate "2019.12.13"]
[EventType "swiss"]
[EventCountry "ESP"]
[SourceTitle "playchess.com"]
[Source "ChessBase"]
[SourceQuality "1"]
[TimeControl "40/5400+30:1800+30"]

1. e4 {[%emt 0:00:00]} d6 {[%emt 0:00:00]} 2. d4 {[%emt 0:00:00]} Nf6 {[%emt 0:00:00]} 3. Nc3 {[%emt 0:00:09]} g6 {[%emt 0:00:00]} 4. Be3 {[%emt 0:00:53]} Bg7 {[%emt 0:00:54]} 5. Nf3 {[%emt 0:00:40]} c6 {[%emt 0:04:15]} 6. h3 {[%emt 0:02:27]} O-O {[%emt 0:01:53]} 7. Qd2 {[%emt 0:00:31]} Qc7 {[%emt 0:13:23]} 8. Bh6 {[%emt 0:07:46]} e5 {[%emt 0:06:35]} 9. Bxg7 {[%emt 0:02:29]} Kxg7 {[%emt 0:00:02]} 10. O-O-O {[%emt 0:08:18]} b5 {[%emt 0:00:52]} 11. dxe5 {[%emt 0:01:38]} dxe5 {[%emt 0:00:03]} 12. g4 {[%emt 0:02:47]} Re8 {[%emt 0:10:18]} 13. Qd6 {[%emt 0:11:19]} Qxd6 {[%emt 0:04:21]} 14. Rxd6 {[%emt 0:00:02]} a6 {[%emt 0:02:33]} 15. Bg2 {[%emt 0:12:35]} Ra7 {[%emt 0:03:08]} 16. Rhd1 {[%emt 0:05:48]} Rc7 {[%emt 0:06:55]} 17. Ng1 {[%emt 0:09:04]} Nbd7 {[%emt 0:03:51]} 18. Nge2 {[%emt 0:02:49]} Nc5 {[%emt 0:01:52]} 19. g5 {[%emt 0:12:42]} Nh5 {[%emt 0:07:20]} 20. Bf3 {[%emt 0:01:41]} b4 {[%emt 0:04:29]} 21. Nb1 {[%emt 0:00:57]} Bxh3 {[%emt 0:03:03]} 22. Bxh5 {[%emt 0:01:16]} gxh5 {[%emt 0:01:00]} 23. f3 {[%emt 0:00:10]} Re6 {[%emt 0:12:50]} 24. Ng3 {[%emt 0:05:11]} Rxd6 {[%emt 0:01:49]} 25. Rxd6 {[%emt 0:00:05]} Ne6 {[%emt 0:00:06]} 26. Nxh5+ {[%emt 0:01:02]} Kg6 {[%emt 0:00:05]} 27. Nf6 {[%emt 0:01:30]} h5 {[%emt 0:03:50]} 28. Nd7 {[%emt 0:02:17]} Kxg5 {[%emt 0:02:15]} 29. Nxe5 {[%emt 0:01:03]} Kf4 {[%emt 0:00:18]} 30. Nd3+ {[%emt 0:00:44]} Kxf3 {[%emt 0:00:56]} 31. Nd2+ {[%emt 0:00:35]} Kg3 {[%emt 0:03:17]} 32. Nxb4 {[%emt 0:01:09]} Bg2 {[%emt 0:00:58]} 33. Rd3+ {[%emt 0:00:48]} Kg4 {[%emt 0:00:19]} 34. Nc4 {[%emt 0:01:18]} Bxe4 {[%emt 0:00:23]} 35. Re3 {[%emt 0:00:58]} f5 {[%emt 0:01:27]} 36. Nd2 {[%emt 0:00:51]} Kf4 {[%emt 0:00:42]} 37. Rh3 {[%emt 0:00:33]} Kg4 {[%emt 0:00:25]} 38. Re3 {[%emt 0:00:16]} Ng5 {[%emt 0:00:11]} 39. Nxa6 {[%emt 0:00:44]} Rh7 {[%emt 0:00:57]} 40. Nc5 {[%emt 0:00:00]} Bg2 {[%emt 0:00:00]} 41. Nd3 {[%emt 0:08:46]} h4 {[%emt 0:09:57]} 42. Nf2+ {[%emt 0:05:12]} Kf4 {[%emt 0:01:52]} 43. Nc4 {[%emt 0:00:07]} Bf1 {[%emt 0:04:20]} 44. Rc3 {[%emt 0:01:11]} Bxc4 {[%emt 0:01:05]} 45. Rxc4+ {[%emt 0:00:01]} Kg3 {[%emt 0:00:14]} 46. Nd1 {[%emt 0:00:27]} h3 {[%emt 0:05:24]} 47. Ne3 {[%emt 0:00:40]} Kf2 {[%emt 0:01:20]} 48. Nd1+ {[%emt 0:01:06]} Ke2 {[%emt 0:02:24]} 49. Rf4 {[%emt 0:00:35]} Ne4 {[%emt 0:01:17]} 0-1

[Event "VI Sunway Sitges Open 2019"]
[Site "Sitges"]
[Date "2019.12.16"]
[Round "4.52"]
[White "Yaniv, Ori"]
[Black "Karthik Rajaa"]
[Result "1/2-1/2"]
[ECO "B12"]
[WhiteElo "2046"]
[BlackElo "2212"]
[Annotator "NA"]
[PlyCount "63"]
[EventDate "2019.12.13"]
[EventType "swiss"]
[EventCountry "ESP"]
[SourceTitle "playchess.com"]
[Source "ChessBase"]
[SourceQuality "1"]
[TimeControl "40/5400+30:1800+30"]

1. e4 {[%emt 0:00:00]} c6 {[%emt 0:01:02]} 2. d4 {[%emt 0:00:00]} d5 {[%emt 0:00:03]} 3. e5 {[%emt 0:02:01]} Bf5 {[%emt 0:00:06]} 4. h4 {[%emt 0:00:06]} h5 {[%emt 0:00:05]} 5. Bd3 {[%emt 0:00:13]} Bxd3 {[%emt 0:01:00]} 6. Qxd3 {[%emt 0:00:08]} e6 {[%emt 0:00:24]} 7. Bg5 {[%emt 0:00:22]} Qb6 {[%emt 0:01:42]} 8. Nd2 {[%emt 0:00:23]} Qa6 {[%emt 0:04:27]} 9. c4 {[%emt 0:00:27]} Bb4 {[%emt 0:09:39]} 10. b3 {[%emt 0:00:19]} Ne7 {[%emt 0:03:57]} 11. Ngf3 {[%emt 0:06:34]} Nd7 {[%emt 0:05:00]} 12. O-O {[%emt 0:02:11]} Nf5 {[%emt 0:01:30]} 13. Qc2 {[%emt 0:08:45]} O-O {[%emt 0:05:45]} 14. a3 {[%emt 0:01:44]} Bxd2 {[%emt 0:04:25]} 15. Bxd2 {[%emt 0:00:39]} dxc4 {[%emt 0:01:33]} 16. bxc4 {[%emt 0:10:32]} Nb6 {[%emt 0:07:33]} 17. Rfc1 {[%emt 0:05:54]} Rfd8 {[%emt 0:02:56]} 18. Be3 {[%emt 0:01:46]} Qa4 {[%emt 0:12:59]} 19. Qxa4 {[%emt 0:15:30]} Nxa4 {[%emt 0:00:02]} 20. Rab1 {[%emt 0:00:11]} c5 {[%emt 0:06:02]} 21. Bg5 {[%emt 0:11:28]} Nxd4 {[%emt 0:12:55]} 22. Bxd8 {[%emt 0:01:54]} Ne2+ {[%emt 0:00:02]} 23. Kf1 {[%emt 0:00:11]} Nxc1 {[%emt 0:00:02]} 24. Be7 {[%emt 0:00:30]} Nd3 {[%emt 0:00:19]} 25. Rxb7 {[%emt 0:00:16]} Nb6 {[%emt 0:01:17]} 26. Ke2 {[%emt 0:15:44]} Nb2 {[%emt 0:00:58]} 27. Bxc5 {[%emt 0:00:50]} N2xc4 {[%emt 0:00:04]} 28. Bd6 {[%emt 0:04:32]} Na5 {[%emt 0:03:24]} 29. Rc7 {[%emt 0:00:40]} Nd5 {[%emt 0:00:18]} 30. Rd7 {[%emt 0:00:43]} Nb6 {[%emt 0:03:32]} 31. Rc7 {[%emt 0:00:08]} Nd5 {[%emt 0:02:09]} 32. Rd7 {[%emt 0:00:43]} 1/2-1/2

[Event "VI Sunway Sitges Open 2019"]
[Site "Sitges"]
[Date "2019.12.16"]
[Round "4.53"]
[White "Rathina Sabapathi A"]
[Black "Medar, Marti"]
[Result "1-0"]
[ECO "B13"]
[WhiteElo "1759"]
[BlackElo "1995"]
[Annotator "NA"]
[PlyCount "85"]
[EventDate "2019.12.13"]
[EventType "swiss"]
[EventCountry "ESP"]
[SourceTitle "playchess.com"]
[Source "ChessBase"]
[SourceQuality "1"]
[TimeControl "40/5400+30:1800+30"]

1. d4 {[%emt 0:00:00]} Nf6 {[%emt 0:00:00]} 2. Nf3 {[%emt 0:01:10]} c5 {[%emt 0:00:39]} 3. e3 {[%emt 0:03:54]} cxd4 {[%emt 0:03:55]} 4. exd4 {[%emt 0:00:00]} d5 {[%emt 0:03:02]} 5. Bd3 {[%emt 0:00:00]} Nc6 {[%emt 0:01:05]} 6. O-O {[%emt 0:01:01]} Bg4 {[%emt 0:00:00]} 7. c3 {[%emt 0:03:35]} e6 8. Qb3 {[%emt 0:06:44]} Qc7 {[%emt 0:16:54]} 9. Ne5 {[%emt 0:08:40]} Bd6 {[%emt 0:02:31]} 10. f4 {[%emt 0:04:59]} Bf5 {[%emt 0:00:00]} 11. Bxf5 exf5 12. Na3 {[%emt 0:02:17]} a6 {[%emt 0:04:07]} 13. Be3 {[%emt 0:04:55]} O-O {[%emt 0:06:56]} 14. Nb1 {[%emt 0:07:13]} b5 15. Nd2 {[%emt 0:02:10]} Na5 {[%emt 0:00:00]} 16. Qc2 {[%emt 0:00:30]} g6 {[%emt 0:03:10]} 17. Rfc1 {[%emt 0:08:39]} Nh5 {[%emt 0:08:05]} 18. g3 {[%emt 0:00:00]} Rfe8 {[%emt 0:04:24]} 19. b4 {[%emt 0:04:03]} Nc4 {[%emt 0:00:00]} 20. Ndxc4 {[%emt 0:00:03]} dxc4 {[%emt 0:00:00]} 21. a4 {[%emt 0:06:57]} Qb7 {[%emt 0:11:03]} 22. Qg2 {[%emt 0:06:53]} Qxg2+ {[%emt 0:00:00]} 23. Kxg2 {[%emt 0:01:54]} Nf6 {[%emt 0:01:45]} 24. Kf3 {[%emt 0:02:18]} Nd5 {[%emt 0:00:00]} 25. Bd2 {[%emt 0:00:30]} f6 {[%emt 0:00:00]} 26. Nc6 {[%emt 0:04:24]} Rec8 {[%emt 0:02:47]} 27. axb5 {[%emt 0:02:49]} axb5 {[%emt 0:00:11]} 28. Na7 {[%emt 0:02:33]} Rcb8 {[%emt 0:00:32]} 29. Ra5 {[%emt 0:13:00]} Nc7 {[%emt 0:19:02]} 30. Rca1 {[%emt 0:00:00]} Rb7 {[%emt 0:00:48]} 31. Be3 {[%emt 0:00:00]} Re8 {[%emt 0:04:20]} 32. Nc6 {[%emt 0:00:00]} h6 {[%emt 0:02:44]} 33. Ra7 {[%emt 0:00:00]} Rxa7 {[%emt 0:00:47]} 34. Rxa7 {[%emt 0:00:00]} g5 {[%emt 0:00:38]} 35. Rb7 {[%emt 0:00:00]} g4+ {[%emt 0:01:32]} 36. Kf2 {[%emt 0:00:00]} Nd5 {[%emt 0:03:37]} 37. Bd2 {[%emt 0:00:00]} Nc7 {[%emt 0:00:04]} 38. Na7 {[%emt 0:00:00]} Ra8 {[%emt 0:02:35]} 39. Nxb5 {[%emt 0:00:00]} Ne8 {[%emt 0:01:26]} 40. Ke3 {[%emt 0:00:00]} Ra1 {[%emt 0:00:00]} 41. Rb6 {[%emt 0:13:14]} Be7 {[%emt 0:01:43]} 42. d5 {[%emt 0:00:53]} Rf1 {[%emt 0:01:02]} 43. d6 {[%emt 0:01:37]} 1-0

[Event "VI Sunway Sitges Open 2019"]
[Site "Sitges"]
[Date "2019.12.16"]
[Round "4.54"]
[White "Stroup, James Howard"]
[Black "Bonnaffe, Xavier"]
[Result "1/2-1/2"]
[ECO "D02"]
[WhiteElo "1402"]
[BlackElo "1556"]
[Annotator "NA"]
[PlyCount "72"]
[EventDate "2019.12.13"]
[EventType "swiss"]
[EventCountry "ESP"]
[SourceTitle "playchess.com"]
[Source "ChessBase"]
[SourceQuality "1"]
[TimeControl "40/5400+30:1800+30"]

1. d4 {[%emt 18:47:03]} d5 {[%emt 0:01:14]} 2. Bf4 {[%emt 0:00:10]} Nf6 {[%emt 0:00:47]} 3. e3 {[%emt 0:00:12]} c5 {[%emt 0:00:57]} 4. Nf3 {[%emt 0:00:19]} Nc6 {[%emt 0:00:09]} 5. c3 {[%emt 0:01:11]} Qb6 {[%emt 0:00:08]} 6. Qc1 {[%emt 0:03:12]} Bf5 {[%emt 0:00:22]} 7. Nbd2 {[%emt 0:02:07]} Rc8 {[%emt 0:01:49]} 8. Nh4 {[%emt 0:01:51]} Bg6 {[%emt 0:09:45]} 9. Nxg6 {[%emt 0:02:10]} hxg6 {[%emt 0:00:03]} 10. Bd3 {[%emt 0:00:52]} Nh5 {[%emt 0:02:43]} 11. Bg5 {[%emt 0:02:48]} cxd4 {[%emt 0:00:36]} 12. cxd4 {[%emt 0:01:13]} e6 {[%emt 0:02:26]} 13. Qc2 {[%emt 0:04:26]} Be7 {[%emt 0:12:20]} 14. Bxe7 {[%emt 0:02:35]} Nxe7 {[%emt 0:00:06]} 15. Qa4+ {[%emt 0:03:15]} Nc6 {[%emt 0:04:04]} 16. Qb3 {[%emt 0:04:31]} Qxb3 {[%emt 0:14:20]} 17. Nxb3 {[%emt 0:01:12]} Nb4 {[%emt 0:02:19]} 18. Kd2 {[%emt 0:05:45]} Nxd3 {[%emt 0:02:02]} 19. Kxd3 {[%emt 0:02:43]} b6 {[%emt 0:02:32]} 20. Rac1 {[%emt 0:03:16]} Kd7 {[%emt 0:01:20]} 21. Nd2 {[%emt 0:03:10]} Nf6 {[%emt 0:01:19]} 22. Rxc8 {[%emt 0:02:21]} Rxc8 {[%emt 0:00:20]} 23. h3 {[%emt 0:03:32]} Ne4 {[%emt 0:10:00]} 24. Nxe4 {[%emt 0:01:08]} dxe4+ {[%emt 0:00:04]} 25. Kd2 {[%emt 0:00:22]} Kd6 {[%emt 0:02:13]} 26. Rc1 {[%emt 0:02:39]} Rxc1 {[%emt 0:02:00]} 27. Kxc1 {[%emt 0:00:09]} Kd5 {[%emt 0:01:09]} 28. Kc2 {[%emt 0:01:14]} a5 {[%emt 0:05:29]} 29. a3 {[%emt 0:02:40]} b5 {[%emt 0:01:58]} 30. Kc3 {[%emt 0:02:36]} g5 {[%emt 0:01:07]} 31. b3 {[%emt 0:04:50]} g6 {[%emt 0:01:11]} 32. Kd2 {[%emt 0:04:54]} f6 {[%emt 0:02:13]} 33. Kc2 {[%emt 0:07:20]} b4 {[%emt 0:00:46]} 34. a4 {[%emt 0:02:32]} f5 {[%emt 0:01:00]} 35. Kd2 {[%emt 0:03:27]} e5 {[%emt 0:01:28]} 36. dxe5 {[%emt 0:00:26]} Kxe5 {[%emt 0:00:02]} 1/2-1/2

[Event "VI Sunway Sitges Open 2019"]
[Site "Sitges"]
[Date "2019.12.17"]
[Round "5.1"]
[White "Praggnanandhaa R"]
[Black "Korobov, Anton"]
[Result "0-1"]
[ECO "B91"]
[WhiteElo "2586"]
[BlackElo "2668"]
[Annotator "RC"]
[PlyCount "134"]
[EventDate "2019.12.13"]
[EventType "swiss"]
[EventCountry "ESP"]
[SourceTitle "playchess.com"]
[Source "ChessBase"]
[SourceQuality "1"]
[TimeControl "40/5400+30:1800+30"]

1. e4 {[%emt 0:06:20]} c5 {[%emt 0:00:00]} 2. Nf3 {[%emt 0:00:00]} d6 {[%emt 0:00:00]} 3. d4 {[%emt 0:00:00]} cxd4 {[%emt 0:00:00]} 4. Nxd4 {[%emt 0:00:00]} Nf6 {[%emt 0:00:00]} 5. Nc3 {[%emt 0:00:00]} a6 {[%emt 0:00:18]} 6. g3 {[%emt 0:00:00]} e5 {[%emt 0:00:26]} 7. Nde2 {[%emt 0:00:00]} Nbd7 {[%emt 0:00:29]} 8. a4 {[%emt 0:00:00]} Be7 {[%emt 0:02:30]} 9. Bg2 {[%emt 0:00:00]} O-O {[%emt 0:02:31]} 10. O-O {[%emt 0:00:00]} b6 {[%emt 0:00:54]} 11. h3 {[%emt 0:13:07]} h5 12. Nd5 {[%emt 0:04:31]} Nxd5 {[%emt 0:07:04]} 13. Qxd5 {[%emt 0:02:23]} Rb8 {[%emt 0:02:14]} 14. Nc3 {[%emt 0:16:05]} h4 {[%emt 0:09:36]} 15. gxh4 {[%emt 0:27:17]} Nc5 16. Be3 {[%emt 0:14:14]} Be6 {[%emt 0:00:16]} 17. Qd2 {[%emt 0:00:00]} Bxh4 {[%emt 0:15:39]} 18. f4 {[%emt 0:00:00]} exf4 {[%emt 0:08:48]} 19. Bxf4 {[%emt 0:00:00]} Nb7 {[%emt 0:02:58]} 20. Qe3 {[%emt 0:15:44]} Bf6 {[%emt 0:00:25]} 21. Rad1 {[%emt 0:00:00]} Qc7 {[%emt 0:02:02]} 22. Qg3 {[%emt 0:09:57]} Be5 {[%emt 0:03:06]} 23. Bxe5 {[%emt 0:00:00]} dxe5 {[%emt 0:02:23]} 24. h4 {[%emt 0:00:00]} Rbd8 {[%emt 0:03:45]} 25. h5 {[%emt 0:08:12]} Kh7 {[%emt 0:03:14]} 26. Bh3 {[%emt 0:09:27]} Rxd1 {[%emt 0:10:53]} 27. Rxd1 {[%emt 0:00:00]} Nc5 {[%emt 0:01:39]} 28. Rd2 {[%emt 0:00:00]} Qc8 {[%emt 0:06:46]} 29. Rg2 {[%emt 0:00:00]} Rg8 {[%emt 0:00:13]} 30. Bxe6 {[%emt 0:00:00]} Qxe6 {[%emt 0:00:09]} 31. Qg5 {[%emt 0:00:00]} a5 {[%emt 0:02:47]} 32. Kh2 {[%emt 0:00:00]} Kh8 {[%emt 0:00:38]} 33. Qh4 {[%emt 0:00:00]} Qh6 {[%emt 0:01:15]} 34. Nd5 {[%emt 0:00:00]} Ne6 {[%emt 0:01:00]} 35. Ne7 {[%emt 0:04:27]} Re8 {[%emt 0:02:29]} 36. Nf5 {[%emt 0:00:00]} Qf4+ {[%emt 0:00:07]} 37. Qxf4 {[%emt 0:00:00]} exf4 {[%emt 0:00:01]} 38. b3 {[%emt 0:00:00]} Kh7 {[%emt 0:01:15]} 39. Rd2 {[%emt 0:00:00]} Ng5 {[%emt 0:01:07]} 40. Rg2 {[%emt 0:00:00]} f6 {[%emt 0:00:00]} 41. Re2 {[%emt 0:00:00]} Nxe4 {[%emt 0:03:43]} 42. Nd4 {[%emt 0:00:00]} Re5 {[%emt 0:01:00]} 43. Kh3 {[%emt 0:00:00]} Nc3 {[%emt 0:08:48]} 44. Rf2 {[%emt 0:00:00]} Rxh5+ {[%emt 0:04:44]} 45. Kg4 {[%emt 0:00:00]} Re5 {[%emt 0:00:23]} 46. Nc6 {[%emt 0:03:47]} Rc5 {[%emt 0:03:44]} 47. Ne7 {[%emt 0:01:46]} g6 {[%emt 0:01:16]} 48. Rxf4 {[%emt 0:01:49]} Kg7 {[%emt 0:01:03]} 49. Rd4 {[%emt 0:00:10]} Rc7 {[%emt 0:01:17]} 50. Rd3 {[%emt 0:00:18]} Rxe7 {[%emt 0:03:09]} 51. Rxc3 {[%emt 0:00:02]} g5 {[%emt 0:02:15]} 52. Kh5 {[%emt 0:01:02]} Kf7 {[%emt 0:00:29]} 53. Rc4 {[%emt 0:03:25]} Re3 {[%emt 0:01:17]} 54. Rc7+ {[%emt 0:00:26]} Ke6 {[%emt 0:00:42]} 55. Kg6 {[%emt 0:00:14]} Kd6 {[%emt 0:00:58]} 56. Rb7 {[%emt 0:00:47]} Kc6 {[%emt 0:00:02]} 57. Rf7 {[%emt 0:00:11]} Rf3 {[%emt 0:00:29]} 58. Kh5 {[%emt 0:00:24]} Rf4 {[%emt 0:00:45]} 59. c3 {[%emt 0:00:19]} g4 {[%emt 0:00:25]} 60. Kh4 {[%emt 0:00:30]} f5 {[%emt 0:00:24]} 61. Rf8 {[%emt 0:00:18]} Kd5 {[%emt 0:01:01]} 62. b4 {[%emt 0:00:24]} Ke4 {[%emt 0:00:29]} 63. bxa5 {[%emt 0:00:47]} bxa5 {[%emt 0:00:10]} 64. c4 {[%emt 0:00:09]} Kf3 {[%emt 0:00:13]} 65. c5 {[%emt 0:00:14]} g3+ {[%emt 0:00:07]} 66. Kh3 {[%emt 0:00:12]} g2 {[%emt 0:00:06]} 67. Rg8 {[%emt 0:00:05]} Rg4 {[%emt 0:00:06]} 0-1

[Event "VI Sunway Sitges Open 2019"]
[Site "Sitges"]
[Date "2019.12.17"]
[Round "5.2"]
[White "Sethuraman, S.P."]
[Black "Narayanan.S.L"]
[Result "0-1"]
[ECO "B23"]
[WhiteElo "2638"]
[BlackElo "2626"]
[Annotator "ChessBase"]
[PlyCount "58"]
[EventDate "2019.12.13"]
[EventType "swiss"]
[EventCountry "ESP"]
[SourceTitle "playchess.com"]
[Source "ChessBase"]
[SourceQuality "1"]
[TimeControl "40/5400+30:1800+30"]

1. e4 {[%emt 0:00:00]} c5 {[%emt 0:00:00]} 2. Nc3 {[%emt 0:00:00]} d6 {[%emt 0:00:00]} 3. d4 {[%emt 0:00:07]} cxd4 {[%emt 0:00:00]} 4. Qxd4 {[%emt 0:00:05]} Nc6 {[%emt 0:00:00]} 5. Qd2 {[%emt 0:00:07]} g6 {[%emt 0:00:00]} 6. b3 {[%emt 0:00:26]} Bh6 {[%emt 0:00:00]} 7. f4 {[%emt 0:00:07]} Nf6 {[%emt 0:00:00]} 8. Bb2 {[%emt 0:00:08]} e5 {[%emt 0:00:06]} 9. g3 {[%emt 0:01:31]} O-O {[%emt 0:00:05]} 10. O-O-O {[%emt 0:00:46]} Re8 {[%emt 0:00:04]} 11. Kb1 {[%emt 0:01:43]} Nd4 {[%emt 0:01:03]} 12. Bg2 {[%emt 0:10:15]} Bg4 {[%emt 0:00:06]} 13. Re1 {[%emt 0:10:50]} a5 {[%emt 0:00:49]} 14. h3 {[%emt 0:03:40]} Bd7 {[%emt 0:00:50]} 15. Nf3 {[%emt 0:02:57]} Nb5 {[%emt 0:00:10]} 16. Qd3 {[%emt 0:06:29]} Nxc3+ {[%emt 0:02:04]} 17. Bxc3 {[%emt 0:00:33]} Qc7 {[%emt 0:00:14]} 18. Bd2 {[%emt 0:12:01]} Bg7 {[%emt 0:01:59]} 19. g4 {[%emt 0:06:06]} exf4 {[%emt 0:19:14]} 20. Bxf4 {[%emt 0:04:01]} Nxe4 {[%emt 0:04:53]} 21. Rxe4 {[%emt 0:00:10]} Rxe4 {[%emt 0:00:07]} 22. Qxe4 {[%emt 0:00:02]} Qc3 {[%emt 0:00:06]} 23. Kc1 {[%emt 0:00:02]} Bb5 {[%emt 0:00:15]} 24. Qxb7 {[%emt 0:10:49]} Rc8 {[%emt 0:08:10]} 25. Ne1 {[%emt 0:18:27]} Re8 {[%emt 0:18:34]} 26. Be4 {[%emt 0:00:00]} Qa1+ {[%emt 0:00:28]} 27. Kd2 {[%emt 0:00:00]} Bc3+ {[%emt 0:00:24]} 28. Ke3 {[%emt 0:00:12]} Qd1 {[%emt 0:00:47]} 29. Nd3 {[%emt 0:00:00]} Qxh1 {[%emt 0:00:29] Kd4} 0-1